bitfinex-derivatives/quotes_BTCF0:USTF0_20251215
["timestamp","ask_amount","ask_price","bid_price","bid_amount"]
[1765810880159,0.002,87799.0,87798.0,0.28476359]
[1765810880656,0.011387,87821.0,87804.0,0.0113891]
[1765810880860,0.0113846,87840.0,87825.0,0.0113864]
[1765810881051,0.0113837,87847.0,87825.0,0.18792]
[1765810881257,0.0113837,87847.0,87826.0,0.14508257]
[1765810881554,0.011379,87883.0,87826.0,0.14508257]
[1765810881555,0.0113824,87857.0,87838.0,0.0113847]
[1765810881758,0.19,87857.0,87828.0,0.28476359]
[1765810881953,0.0113844,87842.0,87828.0,0.28476359]
[1765810882150,0.0113855,87833.0,87829.0,0.17135025]
[1765810882465,0.0113863,87827.0,87822.0,0.00017074]
[1765810882758,0.0913863,87827.0,87822.0,0.00017074]
[1765810883267,0.1913863,87827.0,87822.0,0.00017074]
[1765810883458,0.0213863,87827.0,87822.0,0.28493433]
[1765810883652,0.001,87833.0,87822.0,0.28493433]
[1765810883859,0.001,87833.0,87823.0,0.28371155]
[1765810884063,0.007,87827.0,87823.0,0.16984811]
[1765810884253,0.00017074,87840.0,87823.0,0.16984811]
[1765810884452,0.0113791,87883.0,87825.0,0.19471]
[1765810884651,0.011382,87860.0,87826.0,0.09993121]
[1765810884858,0.171382,87860.0,87847.0,0.0113835]
[1765810885053,0.16,87860.0,87835.0,0.0113851]
[1765810885355,0.005,87827.0,87824.0,0.35628]
[1765810885561,0.0001132,87834.0,87833.0,0.0113854]
[1765810885852,0.0001132,87842.0,87838.0,0.28476359]
[1765810886051,0.0001132,87849.0,87834.0,0.17067387]
[1765810886252,0.1501132,87849.0,87831.0,0.00017074]
[1765810886457,0.0113835,87848.0,87836.0,0.011385]
[1765810886662,0.0113835,87848.0,87835.0,0.17170845]
[1765810886663,0.16,87848.0,87835.0,0.17170845]
[1765810886863,0.0001132,87849.0,87837.0,0.17170845]
[1765810887073,0.1701132,87849.0,87846.0,0.0113837]
[1765810887251,0.1701132,87849.0,87833.0,0.001]
[1765810887458,0.7216,87841.0,87840.0,0.0113845]
[1765810887851,0.0001132,87849.0,87844.0,0.011384]
[1765810888066,0.0001132,87849.0,87848.0,0.0113835]
[1765810888264,0.0001132,87849.0,87831.0,0.00117074]
[1765810888465,0.36067324,87853.0,87841.0,0.11384205]
[1765810888765,0.36067324,87853.0,87842.0,0.17025117]
[1765810888962,0.36067324,87853.0,87849.0,0.0113833]
[1765810889162,0.37205614,87853.0,87840.0,0.17025117]
[1765810889359,0.0113833,87850.0,87839.0,0.17140208]
[1765810889559,0.0113838,87846.0,87843.0,0.28524543]
[1765810889771,0.3608,87845.0,87842.0,0.0113843]
[1765810890066,0.5321839,87845.0,87844.0,0.285237]
[1765810890254,0.0113848,87838.0,87837.0,0.17140208]
[1765810890568,0.0113853,87834.0,87831.0,0.00017074]
[1765810891053,0.1813853,87834.0,87831.0,4e-08]
[1765810891259,0.0113879,87815.0,87806.0,0.0113889]
[1765810891459,0.001,87845.0,87812.0,0.28476359]
[1765810891659,0.191,87845.0,87812.0,0.28476359]
[1765810891958,0.0113885,87810.0,87800.0,0.0113896]
[1765810892158,0.00017074,87814.0,87798.0,0.0113899]
[1765810892359,0.011388,87813.0,87809.0,0.28476359]
[1765810892562,0.171388,87813.0,87809.0,0.28476359]
[1765810892758,0.16,87813.0,87810.0,0.11388743]
[1765810892959,0.0113881,87812.0,87810.0,0.11388743]
[1765810893162,0.2113881,87812.0,87809.0,0.28476359]
[1765810893960,0.2,87812.0,87809.0,0.29615209]
[1765810894155,0.0113853,87835.0,87810.0,0.12526989]
[1765810894372,0.04,87835.0,87833.0,0.0113853]
[1765810894664,0.0113803,87873.0,87823.0,0.22028]
[1765810894865,0.0113828,87854.0,87847.0,0.0113835]
[1765810895068,0.0113825,87856.0,87848.0,0.0113834]
[1765810895270,0.0113836,87848.0,87843.0,0.00017073]
[1765810895471,0.0113824,87857.0,87843.0,0.00017073]
[1765810895670,0.04,87857.0,87844.0,0.28476359]
[1765810895864,0.25,87871.0,87844.0,0.28476359]
[1765810896170,0.0113838,87846.0,87843.0,0.00017073]
[1765810896464,0.2013838,87846.0,87843.0,0.00017073]
[1765810896665,0.7216,87844.0,87843.0,0.00017073]
[1765810896968,0.7216,87844.0,87810.0,0.001]
[1765810896969,0.0113866,87824.0,87810.0,0.001]
[1765810897163,0.3608,87824.0,87820.0,0.011387]
[1765810897372,0.3608,87824.0,87823.0,0.50504359]
[1765810897565,0.3608,87824.0,87823.0,0.6188811]
[1765810897962,0.36056003,87824.0,87823.0,0.50504359]
[1765810898869,0.3608,87824.0,87823.0,0.51643029]
[1765810899374,0.3608,87824.0,87823.0,0.63029503]
[1765810899771,0.00017068,87832.0,87831.0,0.0113857]
[1765810900074,0.372179,87883.0,87860.0,0.0113819]
[1765810900267,0.372179,87883.0,87881.0,0.0113791]
[1765810900268,0.02,87883.0,87881.0,0.0113791]
[1765810900572,0.0113771,87897.0,87887.0,0.0113783]
[1765810900770,0.0113778,87892.0,87875.0,0.28476359]
[1765810901068,0.02,87892.0,87889.0,0.0113781]
[1765810901460,0.00227538,87898.0,87897.0,0.0113771]
[1765810901663,0.00227538,87898.0,87897.0,0.3721771]
[1765810901863,0.00227538,87898.0,87897.0,0.0113771]
[1765810902066,0.3608,87927.0,87897.0,0.6563622]
[1765810902270,0.18,87927.0,87914.0,0.3608]
[1765810902465,0.00227434,87938.0,87908.0,0.3608]
[1765810902466,0.36307434,87938.0,87927.0,0.0113732]
[1765810902670,0.36307434,87938.0,87924.0,0.3608]
[1765810902671,0.19227434,87938.0,87933.0,0.0113724]
[1765810902866,0.2003,87984.0,87930.0,0.0568644]
[1765810903062,0.2003,87984.0,87963.0,0.0113685]
[1765810903263,0.0113646,87994.0,87957.0,1.050082]
[1765810903468,0.00203335,87978.0,87964.0,0.16956697]
[1765810903667,0.00203335,87978.0,87970.0,0.0113676]
[1765810903878,0.00203335,87978.0,87974.0,0.0113672]
[1765810904177,0.2003,88008.0,87965.0,0.16956697]
[1765810904378,0.2003,88008.0,87959.0,0.16956697]
[1765810904379,0.3803,88008.0,87994.0,0.0113645]
[1765810904678,0.0113646,87994.0,87978.0,0.00017052]
[1765810904875,0.2003,87984.0,87978.0,0.00017052]
[1765810905074,0.2003,87984.0,87978.0,0.28493411]
[1765810905374,0.0113631,88006.0,87984.0,0.0113658]
[1765810905563,0.07,88006.0,88005.0,0.0113632]
[1765810905969,0.07,88006.0,87999.0,0.0113639]
[1765810906169,0.07,88006.0,87997.0,0.00017052]
[1765810906478,0.19,88006.0,88004.0,0.3608]
[1765810906776,0.01,88006.0,88005.0,0.0113632]
[1765810906972,0.0113599,88031.0,88013.0,0.0113621]
[1765810907166,0.18,88031.0,88020.0,0.3608]
[1765810907362,0.18,88031.0,88030.0,0.0113599]
[1765810907572,0.05,88031.0,88029.0,0.3608]
[1765810907870,0.0113606,88025.0,88017.0,0.00017042]
[1765810908076,0.3608,88035.0,88018.0,0.28476359]
[1765810908276,0.5508,88035.0,88018.0,0.29612509]
[1765810908477,0.3608,88033.0,88018.0,0.28476359]
[1765810908672,0.5308,88033.0,88019.0,0.0113613]
[1765810908866,0.0113597,88032.0,88028.0,0.3608]
[1765810909069,0.01112103,88022.0,88018.0,0.28476359]
[1765810909267,0.01112103,88022.0,88017.0,2e-08]
[1765810909268,0.3721614,88019.0,88017.0,2e-08]
[1765810909475,0.3721614,88019.0,87990.0,0.3608]
[1765810909476,0.0113635,88003.0,87990.0,0.3608]
[1765810909670,0.0113635,88003.0,87994.0,0.28476359]
[1765810909973,0.0113635,88003.0,88000.0,0.3608]
[1765810910175,0.1313635,88003.0,88000.0,0.3608]
[1765810910375,0.011365,87991.0,87990.0,0.3608]
[1765810910673,0.472165,87991.0,87982.0,0.00017042]
[1765810910877,0.0568156,88006.0,87982.0,0.00017042]
[1765810910878,0.36096939,88010.0,87990.0,0.28476359]
[1765810911067,0.04016939,88010.0,88009.0,0.3608]
[1765810911267,0.00016939,88010.0,88009.0,0.3608]
[1765810912369,0.0113633,88004.0,88001.0,0.36097042]
[1765810912681,0.01153199,88010.0,88008.0,0.3]
[1765810913079,0.03153199,88010.0,88008.0,0.3]
[1765810913279,0.02016939,88010.0,88001.0,0.00017042]
[1765810913580,0.00016939,88010.0,88009.0,0.28476359]
[1765810913876,0.02016939,88010.0,88009.0,0.28476359]
[1765810914176,0.02016939,88010.0,88001.0,0.00017042]
[1765810914177,0.0113633,88004.0,88001.0,0.00017042]
[1765810914375,0.011365,87991.0,87990.0,0.005]
[1765810914576,0.482165,87991.0,87990.0,0.005]
[1765810914766,0.482165,87991.0,87990.0,0.28476359]
[1765810915170,0.0113677,87970.0,87969.0,0.3608]
[1765810915370,0.011369,87960.0,87959.0,0.3608]
[1765810915670,0.01137,87952.0,87951.0,0.36097052]
[1765810916067,0.01137,87952.0,87951.0,0.00017052]
[1765810916273,0.03148549,87952.0,87951.0,0.00017052]
[1765810916478,0.0113718,87938.0,87937.0,0.3608]
[1765810916976,0.0113732,87928.0,87925.0,0.00012514]
[1765810917773,0.0313732,87928.0,87925.0,0.00012514]
[1765810917983,0.3921732,87928.0,87925.0,0.00012514]
[1765810918183,0.5221732,87928.0,87925.0,0.00012514]
[1765810918380,0.0113743,87919.0,87918.0,0.00017052]
[1765810918579,0.3808,87919.0,87906.0,0.3608]
[1765810918780,0.0113758,87907.0,87906.0,0.3608]
[1765810918985,0.011377,87898.0,87894.0,0.3608]
[1765810919181,0.011377,87898.0,87887.0,0.01687665]
[1765810919182,0.0113775,87894.0,87887.0,0.01687665]
[1765810919482,0.0113779,87892.0,87887.0,0.01687665]
[1765810919671,0.0113787,87885.0,87882.0,0.00017062]
[1765810919876,0.0113787,87885.0,87882.0,0.36097062]
[1765810920071,0.0113787,87885.0,87882.0,0.00017062]
[1765810920283,0.02,87885.0,87882.0,0.00017062]
[1765810920487,0.0313788,87885.0,87882.0,0.00017062]
[1765810920877,0.02,87885.0,87882.0,0.00017062]
[1765810921179,0.0113788,87884.0,87882.0,0.00017062]
[1765810921379,0.0113816,87863.0,87861.0,3.7e-07]
[1765810921682,0.0113816,87863.0,87825.0,0.3721863]
[1765810921683,0.0113843,87842.0,87825.0,0.3721863]
[1765810921887,0.0113849,87837.0,87835.0,0.3608]
[1765810922183,0.0113852,87835.0,87815.0,0.3608]
[1765810922379,0.0113852,87835.0,87827.0,0.00017072]
[1765810922380,0.0113853,87834.0,87827.0,0.00017072]
[1765810922582,0.0113856,87832.0,87822.0,0.00017072]
[1765810922779,0.18,87832.0,87822.0,0.00017072]
[1765810922982,0.0113863,87827.0,87822.0,0.00017072]
[1765810923183,0.0113863,87827.0,87771.0,0.001]
[1765810923184,0.011389,87806.0,87794.0,0.01677821]
[1765810923384,0.21426,87828.0,87799.0,0.01153283]
[1765810923575,0.0113864,87826.0,87799.0,0.00014303]
[1765810923776,0.01,87826.0,87800.0,0.28517456]
[1765810924083,0.17,87826.0,87800.0,0.1713189]
[1765810924288,0.00017084,87822.0,87804.0,0.00011533]
[1765810924482,0.00017084,87822.0,87815.0,0.0113876]
[1765810924691,0.0113871,87821.0,87805.0,0.0113889]
[1765810924986,0.01,87821.0,87806.0,0.11387835]
[1765810925174,0.0113885,87810.0,87809.0,0.3608]
[1765810925377,0.0113878,87815.0,87809.0,0.3608]
[1765810925592,0.0113879,87814.0,87809.0,0.3608]
[1765810925782,0.0113891,87805.0,87804.0,0.00011533]
[1765810925977,0.0213891,87805.0,87804.0,0.00011533]
[1765810926178,0.0113891,87805.0,87804.0,0.00011533]
[1765810926581,0.2256497,87800.0,87791.0,0.00886951]
[1765810926781,0.0113907,87792.0,87791.0,0.00886951]
[1765810927087,0.5608,87792.0,87782.0,0.3608]
[1765810927391,0.3608,87783.0,87769.0,0.3608]
[1765810927591,0.01,87783.0,87777.0,0.3608]
[1765810927773,0.2,87783.0,87777.0,0.3608]
[1765810927977,0.05,87783.0,87777.0,0.3608]
[1765810928287,0.05,87783.0,87778.0,0.0113926]
[1765810928487,0.05,87783.0,87782.0,0.003]
[1765810929179,0.05,87783.0,87777.0,0.3721926]
[1765810929380,0.05,87783.0,87777.0,0.3648]
[1765810929685,0.00017084,87785.0,87784.0,0.0113918]
[1765810930278,0.00017084,87785.0,87782.0,0.011392]
[1765810930882,0.3608,87815.0,87804.0,0.0113892]
[1765810931084,0.08,87819.0,87804.0,0.3721892]
[1765810931287,0.3490952,87840.0,87804.0,0.3721892]
[1765810931480,0.3490952,87840.0,87823.0,0.3608]
[1765810931481,0.0113861,87828.0,87823.0,0.3608]
[1765810931790,0.0113861,87828.0,87779.0,0.0569622]
[1765810931791,0.0113907,87793.0,87783.0,0.0113919]
[1765810931986,0.01,87793.0,87785.0,0.3608]
[1765810932383,9.334e-05,87792.0,87785.0,0.3608]
[1765810932582,0.01009334,87792.0,87783.0,0.3608]
[1765810933090,0.0113909,87791.0,87783.0,0.3608]
[1765810933283,9.334e-05,87792.0,87783.0,0.3608]
[1765810933483,9.334e-05,87792.0,87788.0,0.0113912]
[1765810933682,9.334e-05,87792.0,87784.0,0.0113918]
[1765810934387,9.334e-05,87792.0,87791.0,0.3608]
[1765810934595,0.3608,87839.0,87791.0,0.3608]
[1765810934782,0.5508,87831.0,87816.0,0.0113875]
[1765810934987,0.5508,87831.0,87809.0,0.3608]
[1765810934988,0.0113882,87812.0,87809.0,0.3608]
[1765810935189,0.0513882,87812.0,87809.0,0.3608]
[1765810935390,0.0113906,87794.0,87788.0,0.3608]
[1765810935584,0.011391,87791.0,87789.0,0.3608]
[1765810935784,0.031391,87791.0,87789.0,0.3608]
[1765810936090,0.02,87791.0,87789.0,0.3721911]
[1765810936489,0.02,87791.0,87788.0,0.001]
[1765810936490,0.011391,87790.0,87788.0,0.001]
[1765810936696,0.191391,87790.0,87788.0,0.001]
[1765810936891,0.0113919,87783.0,87782.0,0.00017084]
[1765810937192,0.02,87783.0,87782.0,0.00017084]
[1765810938292,0.0113911,87789.0,87782.0,0.36097084]
[1765810938595,0.0113916,87786.0,87782.0,0.36097084]
[1765810938791,0.20115164,87786.0,87782.0,0.00317084]
[1765810939784,0.01,87786.0,87783.0,0.0113919]
[1765810940187,0.00011818,87793.0,87792.0,0.0113907]
[1765810940891,0.00017084,87800.0,87799.0,0.0113898]
[1765810941194,8.4e-07,87800.0,87799.0,0.3721898]
[1765810941394,8.4e-07,87800.0,87799.0,0.3608]
[1765810941794,0.01000084,87800.0,87799.0,0.3608]
[1765810941995,0.00013093,87800.0,87799.0,0.3608]
[1765810942692,0.00013093,87800.0,87799.0,0.3731898]
[1765810943087,0.01152063,87800.0,87799.0,0.3618]
[1765810943292,0.02152063,87800.0,87799.0,0.3608]
[1765810943596,0.02152063,87800.0,87792.0,0.001]
[1765810943597,0.0113906,87793.0,87792.0,0.001]
[1765810943796,0.0213906,87793.0,87790.0,0.3608]
[1765810944188,0.0213906,87793.0,87782.0,0.00017084]
[1765810944189,0.0113919,87783.0,87782.0,0.00017084]
[1765810944501,0.0213919,87783.0,87782.0,0.00017084]
[1765810944999,0.1813919,87783.0,87782.0,0.00017084]
[1765810945586,0.02,87783.0,87782.0,0.01156284]
[1765810945787,0.00013093,87800.0,87796.0,0.0113901]
[1765810945991,0.0113831,87851.0,87782.0,0.00017084]
[1765810945992,0.0113866,87824.0,87799.0,0.3608]
[1765810946188,0.0113866,87824.0,87783.0,0.0113919]
[1765810946189,0.0113885,87810.0,87807.0,0.0113887]
[1765810946392,0.01,87810.0,87809.0,0.3721885]
[1765810946599,0.0213884,87810.0,87809.0,0.7216]
[1765810946801,0.01,87810.0,87809.0,0.3608]
[1765810946993,0.01,87810.0,87807.0,0.0113887]
[1765810947301,0.0113881,87813.0,87809.0,0.3608]
[1765810947495,0.0213881,87813.0,87809.0,0.3608]
[1765810947697,0.1813881,87813.0,87809.0,0.3608]
[1765810948086,0.0113893,87803.0,87802.0,0.3608]
[1765810948287,0.1913893,87803.0,87791.0,0.3608]
[1765810948491,0.0113919,87783.0,87774.0,0.3608]
[1765810948696,0.01115103,87790.0,87774.0,0.3608]
[1765810948887,0.0113914,87787.0,87774.0,0.3608]
[1765810949198,0.03,87787.0,87780.0,0.0113923]
[1765810949398,0.03,87787.0,87783.0,0.3721918]
[1765810949594,0.0113915,87786.0,87783.0,0.3608]
[1765810949798,0.0113915,87786.0,87775.0,0.01156374]
[1765810949799,0.0113917,87785.0,87775.0,0.01156374]
[1765810950000,0.0113914,87787.0,87781.0,0.0113921]
[1765810950203,0.03,87787.0,87784.0,0.0113917]
[1765810950396,0.03,87787.0,87775.0,0.00017084]
[1765810950607,0.0113924,87779.0,87776.0,0.17155237]
[1765810950906,0.0113913,87788.0,87776.0,0.17155237]
[1765810951106,0.00017084,87792.0,87785.0,0.3608]
[1765810951301,0.00017084,87792.0,87786.0,0.0113914]
[1765810951509,0.3608,87790.0,87775.0,0.00317084]
[1765810951697,0.0113925,87779.0,87775.0,0.00317084]
[1765810952208,0.3608,87790.0,87783.0,0.003]
[1765810952402,0.0113916,87786.0,87783.0,0.003]
[1765810952907,0.0413916,87786.0,87783.0,0.003]
[1765810953109,0.0113924,87780.0,87778.0,0.0113925]
[1765810953505,0.0413924,87780.0,87776.0,0.003]
[1765810953703,0.0113924,87780.0,87776.0,0.003]
[1765810953900,0.0113921,87782.0,87777.0,0.0113927]
[1765810954101,0.03,87782.0,87780.0,0.0113923]
[1765810954403,0.03,87782.0,87781.0,0.3608]
[1765810954615,0.0113926,87778.0,87777.0,0.11392246]
[1765810954800,0.0113954,87756.0,87755.0,1.42296]
[1765810955000,0.3721954,87756.0,87755.0,1.42296]
[1765810955303,0.3608,87756.0,87755.0,1.42296]
[1765810956201,0.3608,87762.0,87761.0,0.0113948]
[1765810956503,0.00017084,87764.0,87761.0,0.94258491]
[1765810956698,0.001,87782.0,87781.0,0.0113922]
[1765810957202,0.5864476,87816.0,87781.0,0.0113922]
[1765810957203,0.0113883,87811.0,87785.0,0.0113916]
[1765810957398,0.0113887,87808.0,87804.0,0.3608]
[1765810957603,0.0113894,87803.0,87796.0,0.0113901]
[1765810957802,0.00017084,87808.0,87795.0,0.3608]
[1765810958002,0.00017084,87808.0,87805.0,0.011389]
[1765810958214,0.00017084,87808.0,87804.0,0.3608]
[1765810958215,0.00017084,87808.0,87804.0,0.3721891]
[1765810958399,0.00017084,87808.0,87804.0,0.3608]
[1765810958597,0.0113888,87807.0,87795.0,0.3608]
[1765810958803,0.0113888,87807.0,87803.0,0.3608]
[1765810959204,0.0113899,87799.0,87795.0,0.3608]
[1765810959412,0.3608,87798.0,87782.0,0.3608]
[1765810959706,0.00017084,87808.0,87798.0,0.11388743]
[1765810959908,0.0113904,87795.0,87793.0,0.1697067]
[1765810960103,0.0113904,87795.0,87781.0,0.001]
[1765810960104,0.2039,87792.0,87781.0,0.001]
[1765810960309,0.20366003,87792.0,87781.0,0.001]
[1765810960519,0.25366003,87792.0,87774.0,0.3608]
[1765810960708,0.25366003,87792.0,87765.0,1.09596]
[1765810960709,0.0113941,87766.0,87765.0,0.3608]
[1765810960904,0.3608,87766.0,87750.0,0.02840044]
[1765810961211,0.0113963,87749.0,87745.0,0.3608]
[1765810961506,0.0113963,87749.0,87748.0,0.01687643]
[1765810961707,0.0113963,87749.0,87748.0,0.00014148]
[1765810961907,9.867e-05,87749.0,87747.0,0.0113965]
[1765810962498,0.0113965,87748.0,87740.0,0.00017094]
[1765810962702,9.867e-05,87749.0,87740.0,0.00017094]
[1765810962703,9.867e-05,87749.0,87746.0,0.0113966]
[1765810962906,9.867e-05,87749.0,87748.0,0.3608]
[1765810963114,0.3608,87777.0,87748.0,0.3618]
[1765810963315,0.3608,87777.0,87769.0,0.3721936]
[1765810963316,0.04,87777.0,87769.0,0.3721936]
[1765810963505,0.04,87777.0,87748.0,0.28386473]
[1765810963704,0.17,87777.0,87754.0,0.0113956]
[1765810964011,0.17,87777.0,87756.0,0.0113954]
[1765810964214,0.0113944,87764.0,87760.0,0.0113949]
[1765810964511,0.00017094,87775.0,87758.0,0.00017094]
[1765810964817,0.0113939,87768.0,87759.0,0.011395]
[1765810965003,0.0113947,87762.0,87758.0,0.00017094]
[1765810965204,0.0213947,87762.0,87758.0,0.00017094]
[1765810965600,0.0113948,87761.0,87758.0,0.00017094]
[1765810965804,0.0213948,87761.0,87758.0,0.00117094]
[1765810966016,0.0113948,87761.0,87758.0,0.00117094]
[1765810966311,0.2039,87768.0,87758.0,0.00117094]
[1765810966312,0.0113947,87762.0,87758.0,0.01256594]
[1765810966517,0.0113948,87761.0,87758.0,0.00117094]
[1765810966705,0.0113943,87765.0,87758.0,0.00117094]
[1765810966901,0.0113948,87761.0,87758.0,0.00117094]
[1765810967117,0.0213948,87761.0,87758.0,0.00117094]
[1765810968614,0.0213948,87761.0,87758.0,0.00217094]
[1765810969213,0.0213948,87761.0,87738.0,0.00227953]
[1765810969214,0.0113976,87739.0,87738.0,0.00227953]
[1765810969519,0.01146806,87739.0,87738.0,0.00227953]
[1765810969714,7.046e-05,87739.0,87738.0,0.00227953]
[1765810970016,0.68812046,87739.0,87738.0,0.00227953]
[1765810970314,0.68812046,87739.0,87730.0,0.00317094]
[1765810970315,0.68805,87731.0,87730.0,0.00317094]
[1765810970510,0.3480994,87725.0,87724.0,0.00012635]
[1765810970710,0.35135,87733.0,87724.0,0.00012635]
[1765810970711,0.0113993,87726.0,87724.0,0.00012635]
[1765810970912,0.0213993,87726.0,87724.0,0.00012635]
[1765810971114,0.35135,87733.0,87713.0,0.01695306]
[1765810971418,0.68805,87712.0,87703.0,0.65196]
[1765810971717,0.68805,87712.0,87699.0,0.0114028]
[1765810971718,0.0114025,87702.0,87701.0,0.3608]
[1765810971910,0.2039,87714.0,87698.0,0.00228057]
[1765810971911,0.3608,87704.0,87698.0,0.00228057]
[1765810972106,0.00017094,87710.0,87709.0,0.0114015]
[1765810972517,0.00017094,87710.0,87698.0,0.00228057]
[1765810972817,0.00017094,87710.0,87708.0,0.0114016]
[1765810973213,0.3608,87721.0,87720.0,0.0114001]
[1765810973410,0.12,87721.0,87717.0,0.0114004]
[1765810973715,0.3608,87739.0,87718.0,0.3608]
[1765810974014,0.05,87739.0,87728.0,0.3608]
[1765810974313,0.05,87739.0,87718.0,0.53214998]
[1765810974314,0.0113993,87726.0,87725.0,0.00017094]
[1765810974503,0.1013993,87726.0,87725.0,0.00017094]
[1765810974709,0.0113993,87726.0,87725.0,0.00017094]
[1765810975219,0.3608,87731.0,87725.0,0.00017094]
[1765810975418,0.0113993,87727.0,87725.0,0.00017094]
[1765810975622,0.0113993,87727.0,87708.0,0.0114016]
[1765810975623,0.0114008,87715.0,87708.0,0.0114016]
[1765810975918,0.2039,87722.0,87707.0,0.3608]
[1765810975919,0.58958391,87720.0,87707.0,0.3608]
[1765810976116,0.0114006,87716.0,87715.0,0.3608]
[1765810976313,0.2039,87722.0,87719.0,0.0114002]
[1765810976615,0.0123993,87726.0,87719.0,0.0114002]
[1765810976814,0.0114005,87718.0,87715.0,0.3608]
[1765810977014,0.0114013,87711.0,87707.0,0.3608]
[1765810977215,0.0114013,87711.0,87698.0,0.36308057]
[1765810977216,0.0114018,87707.0,87701.0,0.0114025]
[1765810977520,0.3608,87712.0,87698.0,0.36308057]
[1765810977521,0.0114028,87699.0,87698.0,0.36308057]
[1765810978115,0.2153028,87699.0,87698.0,0.36308057]
[1765810978316,0.00017094,87707.0,87698.0,0.36308057]
[1765810978521,0.05157274,87707.0,87702.0,0.0114023]
[1765810978726,0.0114022,87704.0,87701.0,0.003]
[1765810978921,0.68805,87702.0,87701.0,0.003]
[1765810979623,0.04,87702.0,87698.0,0.01028057]
[1765810979822,0.04,87702.0,87701.0,0.0114025]
[1765810980016,0.00017094,87707.0,87701.0,0.004]
[1765810980216,0.3608,87712.0,87705.0,0.3608]
[1765810980519,0.3608,87738.0,87717.0,0.67857]
[1765810980823,0.68805,87726.0,87725.0,0.3608]
[1765810981010,0.68805,87726.0,87692.0,0.01619739]
[1765810981011,0.0114019,87707.0,87704.0,0.3608]
[1765810981217,0.0114022,87704.0,87697.0,0.00017094]
[1765810981418,0.0114023,87704.0,87702.0,0.0114024]
[1765810981617,0.0114023,87704.0,87701.0,0.007]
[1765810981911,0.69249,87702.0,87701.0,0.007]
[1765810982422,0.68817,87699.0,87698.0,0.00228057]
[1765810982623,0.68817,87699.0,87660.0,0.0114078]
[1765810982624,0.20921,87696.0,87650.0,0.001]
[1765810982813,0.3608,87672.0,87659.0,0.3608]
[1765810983015,0.22877512,87680.0,87661.0,0.28538813]
[1765810983326,0.22877512,87690.0,87661.0,0.0114077]
[1765810983522,0.0114071,87667.0,87662.0,0.28538813]
[1765810983823,0.0114074,87664.0,87659.0,0.18638694]
[1765810984031,0.0114074,87664.0,87659.0,0.17087071]
[1765810984222,0.699578,87659.0,87658.0,0.00228161]
[1765810984419,0.0114098,87646.0,87640.0,0.00011909]
[1765810984616,0.20921,87654.0,87640.0,0.00011909]
[1765810984617,0.68817,87641.0,87640.0,0.00011909]
[1765810984920,0.00017106,87652.0,87640.0,0.02081634]
[1765810985122,0.10017106,87652.0,87640.0,0.02081634]
[1765810985315,0.10017106,87652.0,87641.0,0.1714997]
[1765810985516,0.00017106,87652.0,87651.0,0.02069725]
[1765810985718,0.00017106,87652.0,87651.0,0.69774725]
[1765810985916,8.822e-05,87666.0,87665.0,0.3566772]
[1765810986122,8.822e-05,87666.0,87665.0,0.37737445]
[1765810986327,0.20921,87696.0,87665.0,0.19294575]
[1765810986526,0.20921,87696.0,87692.0,0.0114036]
[1765810986527,0.02,87696.0,87692.0,0.0114036]
[1765810986717,0.02,87696.0,87695.0,0.02069725]
[1765810987034,0.20921,87699.0,87695.0,0.02069725]
[1765810987220,0.20921,87699.0,87698.0,0.02069725]
[1765810987417,0.20921,87699.0,87685.0,0.00017106]
[1765810987418,0.0114045,87686.0,87685.0,0.00017106]
[1765810987724,0.20921,87676.0,87640.0,0.00011909]
[1765810987933,0.0114078,87661.0,87646.0,0.0114097]
[1765810988119,0.2206158,87676.0,87652.0,0.17064729]
[1765810988321,0.32921,87676.0,87652.0,0.28469123]
[1765810988527,0.00017106,87673.0,87652.0,0.28469123]
[1765810988721,0.00017106,87673.0,87669.0,0.0114067]
[1765810988919,0.00017106,87673.0,87652.0,0.28469123]
[1765810989128,0.0114063,87672.0,87670.0,0.17047692]
[1765810989424,0.0114087,87654.0,87653.0,0.17047692]
[1765810989622,0.01141,87644.0,87640.0,0.00011909]
[1765810989826,0.04117004,87644.0,87640.0,0.00011909]
[1765810990433,0.00017106,87651.0,87650.0,0.0114092]
[1765810990637,0.0114014,87711.0,87641.0,0.16996015]
[1765810990638,0.0114061,87675.0,87641.0,0.28404572]
[1765810990820,0.0114049,87684.0,87670.0,0.0114066]
[1765810991026,0.04,87684.0,87674.0,0.011406]
[1765810991230,0.04,87684.0,87648.0,0.08968617]
[1765810991420,0.20921,87676.0,87651.0,0.17040863]
[1765810991627,0.20921,87676.0,87672.0,0.0114063]
[1765810992027,0.00017106,87683.0,87655.0,0.00017106]
[1765810992335,0.00017106,87683.0,87682.0,0.011405]
[1765810992523,0.2206069,87745.0,87682.0,0.011405]
[1765810992835,0.20921,87720.0,87683.0,0.23856]
[1765810993034,0.38921,87720.0,87682.0,0.06154678]
[1765810993223,0.27921,87720.0,87697.0,0.0114031]
[1765810993424,0.37921,87720.0,87684.0,0.11400753]
[1765810993631,0.00017106,87711.0,87702.0,0.0114024]
[1765810993832,0.0114031,87697.0,87693.0,0.00017106]
[1765810994034,0.05017106,87711.0,87693.0,0.00017106]
[1765810994035,0.0114033,87695.0,87693.0,0.00017106]
[1765810994422,0.0114057,87678.0,87668.0,0.0114068]
[1765810994730,0.011405,87682.0,87660.0,0.00396]
[1765810995037,0.20921,87696.0,87672.0,0.0124063]
[1765810995340,0.0114058,87676.0,87675.0,0.00017106]
[1765810995539,0.0414058,87676.0,87675.0,0.00017106]
[1765810995835,0.0114101,87644.0,87640.0,0.00011909]
[1765810996045,0.3608,87643.0,87640.0,0.00011909]
[1765810996335,0.0114102,87642.0,87640.0,0.00011909]
[1765810996732,0.0114118,87630.0,87629.0,0.00299997]
[1765810996932,0.0714118,87630.0,87629.0,0.00299997]
[1765810997128,0.0114132,87619.0,87618.0,0.00228265]
[1765810997840,0.0114132,87619.0,87591.0,0.0114168]
[1765810997841,0.6001191,87619.0,87591.0,0.01603681]
[1765810998056,0.2001191,87619.0,87586.0,0.00010564]
[1765810998238,0.0401191,87619.0,87592.0,0.0114166]
[1765810998542,0.0114134,87618.0,87604.0,0.0114152]
[1765810998728,0.011414,87613.0,87593.0,0.11413114]
[1765810998928,0.011414,87614.0,87593.0,0.17158846]
[1765810999123,0.0001191,87619.0,87591.0,0.17158846]
[1765810999335,0.0114146,87609.0,87592.0,0.0114167]
[1765810999538,0.00017116,87609.0,87598.0,0.0114159]
[1765810999732,0.00017116,87609.0,87591.0,0.17158846]
[1765810999733,0.00017116,87609.0,87593.0,0.17017631]